bitfinex/quotes_BTCUSD_20250330
["timestamp","ask_amount","ask_price","bid_price","bid_amount"]
[1743297491092,0.00031027,83179.0,83178.0,0.607942]
[1743297491289,0.00031027,83179.0,83178.0,0.72822683]
[1743297491514,0.00031027,83179.0,83178.0,0.96867483]
[1743297491675,0.00031027,83179.0,83178.0,0.97067483]
[1743297492073,0.00031027,83179.0,83178.0,0.85039]
[1743297492708,0.00031027,83179.0,83178.0,0.85239]
[1743297495130,0.00031027,83179.0,83178.0,0.93359]
[1743297495355,0.00031027,83179.0,83178.0,0.94813085]
[1743297495532,0.00031027,83179.0,83178.0,0.94613085]
[1743297495769,0.00031027,83179.0,83178.0,0.94413085]
[1743297495978,0.00031027,83179.0,83178.0,1.06841568]
[1743297496332,0.00031027,83179.0,83178.0,1.06641568]
[1743297496555,0.00031027,83179.0,83178.0,1.07041568]
[1743297497181,0.00031027,83179.0,83178.0,1.06841568]
[1743297497394,0.00031027,83179.0,83178.0,1.07241568]
[1743297497970,0.00031027,83179.0,83178.0,0.95213085]
[1743297500764,0.00031027,83179.0,83178.0,0.94813085]
[1743297501161,0.00031027,83179.0,83178.0,0.95413085]
[1743297501568,0.00031027,83179.0,83178.0,0.95013085]
[1743297502786,0.00031027,83179.0,83178.0,0.95609085]
[1743297503009,0.00031027,83179.0,83178.0,0.67657]
[1743297503211,0.01233227,83179.0,83178.0,0.4241]
[1743297504001,0.01233227,83179.0,83178.0,0.4121]
[1743297504206,0.01233227,83179.0,83178.0,0.4141]
[1743297504414,0.01233227,83179.0,83178.0,0.4161]
[1743297504618,0.01233227,83179.0,83178.0,0.002]
[1743297504619,0.31233227,83179.0,83178.0,0.002]
[1743297505027,0.31233227,83179.0,83178.0,0.004]
[1743297506249,0.31233227,83179.0,83178.0,0.006]
[1743297506451,0.31233227,83179.0,83178.0,0.002]
[1743297506862,0.012024,83164.0,83161.0,0.4121]
[1743297507200,0.012024,83163.0,83161.0,0.4121]
[1743297507410,0.252518,83162.0,83161.0,0.4121]
[1743297508034,0.012024,83166.0,83161.0,0.4161]
[1743297508194,0.02632207,83166.0,83161.0,0.4161]
[1743297508680,0.02632207,83166.0,83161.0,0.4121]
[1743297508994,0.012022,83174.0,83169.0,0.012023]
[1743297509131,0.3,83171.0,83168.0,0.012023]
[1743297509331,0.3,83173.0,83171.0,0.240467]
[1743297509516,0.00031027,83179.0,83171.0,0.240467]
[1743297509517,0.012022,83177.0,83171.0,0.240467]
[1743297510532,0.00031027,83179.0,83173.0,0.240462]
[1743297510823,0.0150715,83179.0,83173.0,0.240462]
[1743297511037,0.00031027,83179.0,83175.0,0.240454]
[1743297511238,0.01202,83188.0,83175.0,0.240454]
[1743297511239,0.2405976,83185.0,83180.0,0.012022]
[1743297511371,0.2405976,83185.0,83175.0,0.240455]
[1743297511372,0.24044,83181.0,83176.0,0.012022]
[1743297511577,0.2547103,83181.0,83176.0,0.012022]
[1743297511915,0.24044,83181.0,83176.0,0.012022]
[1743297512274,4.718e-05,83182.0,83180.0,0.012022]
[1743297512471,4.718e-05,83182.0,83177.0,0.012022]
[1743297513624,0.01206818,83182.0,83177.0,0.012022]
[1743297513890,0.01206818,83182.0,83174.0,0.012022]
[1743297514113,0.01206818,83182.0,83106.0,0.10800976]
[1743297514114,0.252491,83171.0,83167.0,0.13848]
[1743297514287,0.2525,83168.0,83160.0,0.252524]
[1743297514521,0.252491,83171.0,83164.0,0.012024]
[1743297514691,0.012023,83170.0,83164.0,0.012024]
[1743297515976,0.012024,83164.0,83159.0,0.13848]
[1743297516186,0.012024,83162.0,83159.0,0.13848]
[1743297516380,0.252521,83162.0,83159.0,0.13848]
[1743297516582,0.240523,83152.0,83151.0,0.004]
[1743297516747,0.012025,83158.0,83153.0,0.240519]
[1743297516947,0.252525,83160.0,83154.0,0.012025]
[1743297517535,0.252525,83160.0,83159.0,0.004]
[1743297517834,0.25257216,83160.0,83154.0,0.012025]
[1743297518040,0.252532,83158.0,83151.0,0.250525]
[1743297518193,0.012025,83157.0,83151.0,0.244525]
[1743297518402,0.01207216,83160.0,83153.0,0.24052]
[1743297518607,0.01207216,83160.0,83154.0,0.003]
[1743297518838,0.240503,83159.0,83154.0,0.003]
[1743297519299,0.252528,83159.0,83154.0,0.015025]
[1743297519881,4.716e-05,83160.0,83155.0,0.252539]
[1743297520236,0.01207216,83160.0,83155.0,0.252539]
[1743297520441,4.716e-05,83160.0,83155.0,0.252539]
[1743297520764,4.716e-05,83160.0,83157.0,0.252533]
[1743297520968,4.716e-05,83160.0,83159.0,0.012025]
[1743297521317,4.716e-05,83160.0,83159.0,0.09562977]
[1743297521426,4.716e-05,83160.0,83159.0,0.093225]
[1743297522275,4.716e-05,83160.0,83159.0,0.10776585]
[1743297522475,4.716e-05,83160.0,83159.0,0.22805068]
[1743297523181,4.716e-05,83160.0,83159.0,0.23105068]
[1743297523382,4.716e-05,83160.0,83159.0,0.22805068]
[1743297523516,4.716e-05,83160.0,83159.0,0.10776585]
[1743297523720,4.716e-05,83160.0,83159.0,0.11476585]
[1743297524176,4.716e-05,83160.0,83159.0,0.11176585]
[1743297524598,4.716e-05,83160.0,83159.0,0.11676585]
[1743297525953,4.716e-05,83160.0,83159.0,0.52886585]
[1743297526565,4.716e-05,83160.0,83159.0,0.52486585]
[1743297526832,4.716e-05,83160.0,83159.0,0.51986585]
[1743297527034,4.716e-05,83160.0,83159.0,0.52986585]
[1743297528494,4.716e-05,83160.0,83159.0,0.62844641]
[1743297528697,4.716e-05,83160.0,83159.0,0.62878361]
[1743297530312,4.716e-05,83160.0,83159.0,0.53020305]
[1743297531774,4.716e-05,83160.0,83159.0,0.77070605]
[1743297540035,4.716e-05,83160.0,83159.0,0.6749652]
[1743297543897,4.716e-05,83160.0,83159.0,0.76760605]
[1743297544109,4.716e-05,83160.0,83159.0,0.81640605]
[1743297544338,4.716e-05,83160.0,83159.0,0.93669088]
[1743297545644,4.716e-05,83160.0,83159.0,0.81640605]
[1743297548763,4.716e-05,83160.0,83159.0,0.83084272]
[1743297549166,4.716e-05,83160.0,83159.0,0.83730234]
[1743297549906,4.716e-05,83160.0,83159.0,0.81286567]
[1743297550121,4.716e-05,83160.0,83159.0,0.81786567]
[1743297550266,4.716e-05,83160.0,83159.0,0.82386567]
[1743297551224,4.716e-05,83160.0,83159.0,0.9441505]
[1743297553086,4.716e-05,83160.0,83159.0,0.9491505]
[1743297553510,1.6e-07,83160.0,83159.0,1.2741505]
[1743297553987,8e-07,83185.0,83184.0,0.252451]
[1743297554191,4.8e-05,83185.0,83184.0,0.88954575]
[1743297554992,4.8e-05,83185.0,83184.0,0.88454575]
[1743297556673,4.8e-05,83185.0,83184.0,0.89054575]
[1743297557174,4.8e-05,83185.0,83184.0,0.89654575]
[1743297559955,4.8e-05,83185.0,83184.0,0.88454575]
[1743297560072,4.8e-05,83185.0,83184.0,0.89054575]
[1743297560375,4.8e-05,83185.0,83184.0,0.89654575]
[1743297562615,4.8e-05,83185.0,83184.0,0.69109185]
[1743297562837,4.8e-05,83185.0,83184.0,0.82957185]
[1743297564033,4.8e-05,83185.0,83184.0,0.82357185]
[1743297564288,4.8e-05,83185.0,83184.0,0.81757185]
[1743297564506,4.8e-05,83185.0,83184.0,0.82357185]
[1743297565082,4.8e-05,83185.0,83184.0,0.94385668]
[1743297565380,4.8e-05,83185.0,83184.0,1.01945668]
[1743297565580,4.8e-05,83185.0,83184.0,1.02545668]
[1743297566301,4.8e-05,83185.0,83184.0,1.03975595]
[1743297566501,4.8e-05,83185.0,83184.0,1.03375595]
[1743297566899,4.8e-05,83185.0,83184.0,1.03975595]
[1743297567921,4.8e-05,83185.0,83184.0,0.90517185]
[1743297569017,4.8e-05,83185.0,83184.0,0.76669185]
[1743297569244,0.633196,83185.0,83184.0,0.012]
[1743297569851,0.64761658,83185.0,83184.0,0.012]
[1743297570057,0.64761658,83185.0,83184.0,0.006]
[1743297570261,0.012021,83183.0,83182.0,0.0003372]
[1743297571672,0.012021,83183.0,83182.0,0.0023372]
[1743297573387,0.012021,83183.0,83182.0,0.0043372]
[1743297573586,0.012021,83183.0,83182.0,0.0023372]
[1743297573938,0.012021,83183.0,83182.0,0.0043372]
[1743297574230,0.012021,83183.0,83182.0,0.0023372]
[1743297574530,0.012021,83183.0,83182.0,0.0043372]
[1743297575085,0.552454,83183.0,83182.0,0.0043372]
[1743297575317,0.552454,83183.0,83182.0,0.0023372]
[1743297575472,0.552454,83183.0,83182.0,0.0043372]
[1743297576416,0.5526226,83183.0,83182.0,0.0043372]
[1743297583294,0.6747226,83183.0,83182.0,0.0043372]
[1743297584245,0.6747226,83183.0,83182.0,0.0023372]
[1743297584968,0.6747226,83183.0,83182.0,0.0003372]
[1743297592902,0.70987896,83183.0,83182.0,0.0003372]
[1743297593117,0.6747226,83183.0,83182.0,0.0003372]
[1743297594787,0.76841613,83183.0,83182.0,0.0003372]
[1743297595026,0.7098877,83183.0,83182.0,0.0003372]
[1743297596170,0.8098877,83183.0,83182.0,2e-07]
[1743297597341,0.7747226,83183.0,83182.0,2e-07]
[1743297597553,0.80989244,83183.0,83182.0,2e-07]
[1743297597956,0.81189244,83183.0,83182.0,2e-07]
[1743297599154,0.80989244,83183.0,83182.0,2e-07]
[1743297599562,0.81389244,83183.0,83182.0,2e-07]
[1743297603139,0.80741244,83183.0,83182.0,2e-07]
[1743297603699,0.73031244,83183.0,83182.0,2e-07]
[1743297609176,0.74916632,83183.0,83182.0,2e-07]
[1743297609399,0.73031244,83183.0,83182.0,2e-07]
[1743297611690,0.59179244,83183.0,83182.0,2e-07]
[1743297611893,0.73031244,83183.0,83182.0,2e-07]
[1743297613388,0.59179244,83183.0,83182.0,2e-07]
[1743297613974,0.33933844,83183.0,83182.0,2e-07]
[1743297614156,0.3041686,83183.0,83182.0,2e-07]
[1743297614588,0.3161896,83183.0,83182.0,2e-07]
[1743297614793,0.5566226,83183.0,83182.0,2e-07]
[1743297619262,0.57547572,83183.0,83182.0,2e-07]
[1743297620233,0.65031613,83183.0,83182.0,2e-07]
[1743297620438,0.5566226,83183.0,83182.0,2e-07]
[1743297622824,0.552502,83167.0,83166.0,0.045]
[1743297622974,0.552525,83160.0,83157.0,0.1211]
[1743297624556,0.552525,83160.0,83159.0,0.00047887]
[1743297624912,0.552525,83160.0,83159.0,0.00247887]
[1743297625857,0.552525,83160.0,83159.0,0.00447887]
[1743297628994,0.552525,83160.0,83159.0,0.00247887]
[1743297629439,0.552525,83160.0,83159.0,0.00347887]
[1743297629778,0.57644286,83160.0,83159.0,0.00147887]
[1743297630294,0.57644286,83160.0,83159.0,0.00247887]
[1743297630493,0.57644286,83160.0,83159.0,0.00147887]
[1743297630950,0.57644286,83160.0,83159.0,0.00247887]
[1743297631151,0.57644286,83160.0,83159.0,0.00147887]
[1743297631372,0.57644286,83160.0,83159.0,0.00247887]
[1743297642276,0.61176741,83160.0,83159.0,0.00047887]
[1743297645596,0.552549,83152.0,83151.0,0.004]
[1743297645842,0.552549,83152.0,83151.0,0.00404716]
[1743297647890,0.628049,83152.0,83151.0,0.00404716]
[1743297648896,0.629049,83152.0,83151.0,0.00404716]
[1743297649252,0.66434315,83152.0,83151.0,0.00404716]
[1743297649458,0.630049,83152.0,83151.0,0.00404716]
[1743297649807,0.66533807,83152.0,83151.0,0.00404716]
[1743297650244,0.66533807,83152.0,83151.0,0.00384621]
[1743297651875,0.552558,83149.0,83148.0,0.0003374]
[1743297656798,0.555558,83149.0,83148.0,0.0003374]
[1743297657400,0.552582,83141.0,83140.0,0.0003374]
[1743297657816,0.691102,83141.0,83140.0,0.0003374]
[1743297659081,0.70996343,83141.0,83140.0,0.0003374]
[1743297659359,0.71096343,83141.0,83140.0,0.0003374]
[1743297659921,0.70996343,83141.0,83140.0,0.0003374]
[1743297660252,0.72936883,83141.0,83140.0,0.0003374]
[1743297661497,0.73855432,83141.0,83140.0,0.0003374]
[1743297661702,0.312027,83140.0,83139.0,0.0003372]
[1743297661924,0.34729383,83140.0,83139.0,0.0003372]
[1743297662652,0.312027,83140.0,83139.0,0.0003372]
[1743297662865,0.34728125,83140.0,83139.0,0.0003372]
[1743297663039,0.34928125,83140.0,83139.0,0.0003372]
[1743297663448,0.314027,83140.0,83139.0,0.0003372]
[1743297663641,0.252627,83126.0,83125.0,0.0791218]
[1743297663846,0.552627,83126.0,83125.0,0.07926321]
[1743297664524,0.552627,83126.0,83125.0,0.07916274]
[1743297665414,0.56624532,83126.0,83125.0,0.07916274]
[1743297665621,0.56624532,83126.0,83125.0,0.08116274]
[1743297665963,0.56624532,83126.0,83125.0,0.08316274]
[1743297670739,0.59068958,83126.0,83125.0,0.08350014]
[1743297672546,0.32564732,83126.0,83125.0,0.08350014]
[1743297673356,0.56624532,83126.0,83125.0,0.08350014]
[1743297678991,0.31361832,83126.0,83125.0,0.08350014]
[1743297679193,0.01361832,83126.0,83125.0,0.14523014]
[1743297679420,0.252585,83140.0,83135.0,0.252599]
[1743297679626,0.252585,83140.0,83136.0,0.126]
[1743297679627,0.240569,83137.0,83136.0,0.126]
[1743297680052,0.55396848,83137.0,83136.0,0.126]
[1743297680668,0.56599648,83137.0,83136.0,0.126]
[1743297680801,0.56699648,83137.0,83136.0,0.126]
[1743297681517,0.32642748,83137.0,83136.0,0.126]
[1743297682338,0.32742748,83137.0,83136.0,0.126]
[1743297682875,0.32642748,83137.0,83136.0,0.126]
[1743297683082,0.31439948,83137.0,83136.0,0.126]
[1743297683283,0.31439948,83137.0,83136.0,0.378597]
[1743297683493,0.31456818,83137.0,83136.0,0.378597]
[1743297683726,0.31356818,83137.0,83136.0,0.378597]
[1743297684227,0.02407382,83137.0,83136.0,0.378597]
[1743297684454,0.0001687,83137.0,83136.0,0.4669784]
[1743297684655,0.0001687,83137.0,83136.0,0.4679784]
[1743297684992,0.0001687,83137.0,83136.0,0.380597]
[1743297685394,0.0001687,83137.0,83136.0,0.379597]
[1743297685857,0.0001687,83137.0,83136.0,0.383597]
[1743297686061,0.0001687,83137.0,83136.0,0.382597]
[1743297687407,0.0001687,83137.0,83136.0,0.385597]
[1743297690149,0.0001687,83137.0,83136.0,0.9006264]
[1743297690529,0.0001687,83137.0,83136.0,0.91516725]
[1743297691097,0.0001687,83137.0,83136.0,0.81223785]
[1743297691729,0.0001687,83137.0,83136.0,0.80523785]
[1743297691967,0.0011687,83137.0,83136.0,0.82378368]
[1743297692170,0.0021687,83137.0,83136.0,0.82878368]
[1743297692370,0.0021687,83137.0,83136.0,0.94906851]
[1743297693499,0.0021687,83137.0,83136.0,0.93552268]
[1743297693719,0.0021687,83137.0,83136.0,0.81523785]
[1743297694894,0.0021687,83137.0,83136.0,0.939137]
[1743297695146,0.0021687,83137.0,83136.0,0.9394744]
[1743297695883,0.0001687,83137.0,83136.0,0.7910344]
[1743297697092,0.0001687,83137.0,83136.0,0.7970344]
[1743297697297,0.0001687,83137.0,83136.0,0.1383374]
[1743297697482,0.0001687,83137.0,83136.0,0.0620374]
[1743297697672,0.0001687,83137.0,83136.0,0.0560374]
[1743297698082,0.0001687,83137.0,83136.0,0.0620374]
[1743297698286,0.0001687,83137.0,83136.0,0.0560374]
[1743297699065,0.0011687,83137.0,83136.0,0.0550374]
[1743297699474,0.0011687,83137.0,83136.0,0.0610374]
[1743297699882,0.0011687,83137.0,83136.0,0.3136344]
[1743297700465,0.0011687,83137.0,83136.0,0.0610374]
[1743297700862,0.0011687,83137.0,83136.0,0.3136344]
[1743297702734,0.0011687,83137.0,83136.0,0.3909344]
[1743297707525,0.0011687,83137.0,83136.0,0.1383374]
[1743297707929,0.0011687,83137.0,83136.0,0.0610374]
[1743297709007,0.0131967,83137.0,83136.0,0.0610374]
[1743297709512,0.0011687,83137.0,83136.0,0.0610374]
[1743297710234,0.0001687,83137.0,83136.0,0.0560374]
[1743297710468,1.04023862,83140.0,83136.0,0.0500374]
[1743297710581,1.04023862,83140.0,83136.0,0.0550374]
[1743297710787,1.04023862,83140.0,83136.0,0.0600374]
[1743297710995,1.78765162,83140.0,83139.0,0.012028]
[1743297712282,1.78765162,83140.0,83139.0,0.016028]
[1743297713635,1.78765162,83140.0,83139.0,0.020028]
[1743297719485,1.78782032,83140.0,83139.0,0.008]
[1743297720419,1.78782032,83140.0,83139.0,0.020028]
[1743297720617,1.78782032,83140.0,83139.0,0.008]
[1743297722048,1.78782032,83140.0,83139.0,0.020028]
[1743297725449,1.78782032,83140.0,83139.0,0.008]
[1743297726154,1.79984732,83140.0,83139.0,0.008]
[1743297726358,1.78782032,83140.0,83139.0,0.008]
[1743297726771,1.53631298,83140.0,83139.0,0.008]
[1743297726924,1.54833998,83140.0,83139.0,0.008]
[1743297727109,1.53631298,83140.0,83139.0,0.008]
[1743297728229,1.54833998,83140.0,83139.0,0.008]
[1743297728858,1.53631298,83140.0,83139.0,0.008]
[1743297729481,1.53631298,83140.0,83139.0,0.24856]
[1743297731958,1.53631298,83140.0,83139.0,0.2488974]
[1743297734719,1.53631298,83140.0,83139.0,0.2438974]
[1743297734891,1.28900704,83140.0,83139.0,0.2438974]
[1743297735866,1.28900704,83140.0,83139.0,0.3366254]
[1743297737238,1.28900704,83140.0,83139.0,0.7487254]
[1743297742867,1.28900704,83140.0,83139.0,0.81246625]
[1743297744417,1.29000704,83140.0,83139.0,0.83481349]
[1743297744627,1.29000704,83140.0,83139.0,0.84081349]
[1743297745603,1.29000704,83140.0,83139.0,0.96109832]
[1743297746481,1.29000704,83140.0,83139.0,0.82627264]
[1743297746695,1.29000704,83140.0,83139.0,0.96463264]
[1743297747262,1.29000704,83140.0,83139.0,0.9422854]
[1743297747786,1.28900704,83140.0,83139.0,0.7202254]
[1743297748013,1.30235108,83140.0,83139.0,0.4124374]
[1743297748164,1.31437808,83140.0,83139.0,0.4174374]
[1743297748343,1.31437808,83140.0,83139.0,0.4224374]
[1743297751078,1.30235108,83140.0,83139.0,0.4224374]
[1743297751784,1.30235108,83140.0,83139.0,0.4124374]
[1743297751989,1.30235108,83140.0,83139.0,0.4174374]
[1743297752188,1.30235108,83140.0,83139.0,0.4224374]
[1743297752389,1.54290908,83140.0,83139.0,0.4224374]
[1743297754288,1.54290908,83140.0,83139.0,0.4174374]
[1743297754512,1.30235108,83140.0,83139.0,0.4174374]
[1743297754713,1.30235108,83140.0,83139.0,0.4144374]
[1743297755113,1.30235108,83140.0,83139.0,0.4164374]
[1743297756556,1.31437808,83140.0,83139.0,0.4164374]
[1743297757253,1.30235108,83140.0,83139.0,0.4164374]
[1743297757690,1.30235108,83140.0,83139.0,0.0043374]
[1743297757972,1.00801736,83140.0,83139.0,0.30911518]
[1743297758172,1.00801736,83140.0,83139.0,0.43221518]
[1743297758750,1.00801736,83140.0,83139.0,0.3800254]
[1743297760183,1.00801736,83140.0,83139.0,0.39456625]
[1743297761549,1.00801736,83140.0,83139.0,0.39256625]
[1743297761926,1.00801736,83140.0,83139.0,0.39056625]
[1743297762087,1.00801736,83140.0,83139.0,0.39656625]
[1743297762856,1.00801736,83140.0,83139.0,0.40156625]
[1743297763588,1.00801736,83140.0,83139.0,0.81366625]
[1743297764217,1.00801736,83140.0,83139.0,0.93395108]
[1743297767812,1.00801736,83140.0,83139.0,0.94278375]
[1743297768829,1.00801736,83140.0,83139.0,0.93678375]
[1743297769028,1.00801736,83140.0,83139.0,0.93778375]
[1743297769231,1.00801736,83140.0,83139.0,0.82349892]
[1743297770489,1.00801736,83140.0,83139.0,0.95298625]
[1743297778079,0.43559836,83140.0,83139.0,0.95798625]
[1743297778276,0.0001687,83141.0,83140.0,0.15796785]
[1743297779447,0.0001687,83141.0,83140.0,0.16396785]
[1743297779769,0.0001687,83141.0,83140.0,0.27274115]
[1743297780706,0.0001687,83141.0,83140.0,0.27874115]
[1743297784031,0.0001687,83141.0,83140.0,0.69084115]
[1743297788575,0.0001687,83141.0,83140.0,0.71568525]
[1743297789388,0.0001687,83141.0,83140.0,0.63918525]
[1743297789607,0.0001687,83141.0,83140.0,0.5747444]
[1743297789786,0.0001687,83141.0,83140.0,0.58928525]
[1743297796086,0.0001687,83141.0,83140.0,0.71208525]
[1743297796199,7e-07,83141.0,83140.0,0.83737008]
[1743297800316,7e-07,83141.0,83140.0,0.71208525]
[1743297800669,7e-07,83141.0,83140.0,0.6975044]
[1743297800876,7e-07,83141.0,83140.0,0.71204525]
[1743297801781,7e-07,83141.0,83140.0,0.57380525]
[1743297801987,7e-07,83141.0,83140.0,0.71204525]
[1743297802237,7e-07,83141.0,83140.0,0.83233008]
[1743297803232,7e-07,83141.0,83140.0,0.63514525]
[1743297814269,0.252497,83169.0,83162.0,0.252516]
[1743297814471,0.252498,83169.0,83163.0,0.012024]
[1743297815452,0.2525452,83169.0,83163.0,0.012024]
[1743297815634,0.012023,83168.0,83163.0,0.012024]
[1743297816060,0.240479,83167.0,83162.0,0.252516]
[1743297817321,0.284879,83167.0,83162.0,0.252516]
[1743297817686,0.0444,83167.0,83162.0,0.252516]
[1743297817886,0.0444,83167.0,83162.0,0.253516]
[1743297818410,0.0444,83167.0,83163.0,0.001]
[1743297818705,0.0444,83167.0,83162.0,0.253516]
[1743297819008,0.0444,83167.0,83162.0,0.254516]
[1743297819572,0.0444,83167.0,83162.0,0.253516]
[1743297819778,0.0444,83167.0,83163.0,0.001]
[1743297820839,0.0444,83167.0,83163.0,0.002]
[1743297821028,0.312024,83164.0,83163.0,0.002]
[1743297821440,0.356424,83164.0,83163.0,0.001]
[1743297822042,0.356424,83164.0,83162.0,0.001]
[1743297822317,0.240555,83141.0,83140.0,0.4124374]
[1743297822510,0.252582,83141.0,83140.0,0.0003374]
[1743297823611,0.26559655,83141.0,83140.0,0.0003374]
[1743297824196,0.26559655,83141.0,83140.0,0.0053374]
[1743297824872,0.26559655,83141.0,83140.0,0.0063374]
[1743297825274,0.26559655,83141.0,83140.0,0.0093374]
[1743297825480,0.26559655,83141.0,83140.0,0.0033374]
[1743297825677,0.26559655,83141.0,83140.0,0.0063374]
[1743297828178,0.56559655,83141.0,83140.0,0.0063374]
[1743297829054,0.56559655,83141.0,83140.0,0.0033374]
[1743297830256,0.56559655,83141.0,83140.0,0.0003374]
[1743297843376,0.56559655,83141.0,83140.0,0.0795374]
[1743297844084,0.56559655,83141.0,83140.0,0.0003374]
[1743297851982,0.26519154,83147.0,83141.0,0.012027]
[1743297852178,0.02465354,83147.0,83146.0,0.252567]
[1743297852392,0.02465354,83147.0,83142.0,0.240552]
[1743297852393,0.02465354,83147.0,83145.0,0.0769]
[1743297852612,0.02465354,83147.0,83145.0,0.11562808]
[1743297852812,0.02465354,83147.0,83145.0,0.0769]
[1743297852985,0.03667954,83147.0,83145.0,0.0769]
[1743297853363,0.02465354,83147.0,83145.0,0.088927]
[1743297853591,0.02465354,83147.0,83145.0,0.0769]
[1743297853955,0.02465354,83147.0,83146.0,0.001]
[1743297854807,0.02465354,83147.0,83145.0,0.0779]
[1743297855247,0.012026,83150.0,83149.0,0.012026]
[1743297855248,0.3,83150.0,83149.0,0.012026]
[1743297855395,0.012025,83157.0,83152.0,0.012026]
[1743297855596,0.32496105,83157.0,83153.0,0.0451]
[1743297855919,0.02496105,83157.0,83153.0,0.122]
[1743297856078,0.30004719,83157.0,83153.0,0.362519]
[1743297856298,0.30004719,83157.0,83155.0,0.252538]
[1743297856504,0.012025,83155.0,83153.0,0.122]
[1743297857649,4.719e-05,83157.0,83153.0,0.362519]
[1743297857884,4.719e-05,83157.0,83153.0,0.374545]
[1743297858295,4.719e-05,83157.0,83155.0,0.252538]
[1743297858478,4.719e-05,83157.0,83156.0,0.012025]
[1743297859467,4.719e-05,83157.0,83156.0,0.10346585]
[1743297859675,4.719e-05,83157.0,83156.0,0.56066585]
[1743297860647,0.00021579,83157.0,83156.0,0.56066585]
[1743297860848,0.00021579,83157.0,83156.0,0.68095068]
[1743297861245,0.00021579,83157.0,83156.0,0.68795068]
[1743297863892,0.00021579,83157.0,83156.0,0.82607068]
[1743297865136,0.00021579,83157.0,83156.0,0.70578585]
[1743297870862,0.00021579,83157.0,83156.0,0.5411]
[1743297871119,0.00021579,83157.0,83156.0,0.67922]
[1743297872299,0.00021579,83157.0,83156.0,0.4191]
[1743297874931,0.00021579,83157.0,83156.0,0.007]
[1743297875945,0.25274879,83157.0,83156.0,0.007]
[1743297876846,0.25274879,83157.0,83156.0,0.003]
[1743297877046,0.252555,83150.0,83149.0,0.21778]
[1743297877870,0.252555,83150.0,83149.0,0.13808]
[1743297879093,0.26498666,83150.0,83149.0,0.13808]
[1743297879654,0.012025,83154.0,83149.0,0.14508]
[1743297879786,0.24052,83153.0,83149.0,0.14208]
[1743297879988,0.24052,83153.0,83149.0,0.13808]
[1743297880209,0.24052,83153.0,83149.0,0.14108]
[1743297880414,0.24052,83153.0,83149.0,0.14508]
[1743297881420,0.012025,83154.0,83149.0,0.14508]
[1743297881625,0.012025,83154.0,83149.0,0.13808]
[1743297882001,0.012025,83154.0,83149.0,0.14308]
[1743297882201,0.02499019,83154.0,83149.0,0.14108]
[1743297882418,0.02499019,83154.0,83149.0,0.13808]
[1743297882637,0.02499019,83154.0,83149.0,0.14008]
[1743297882839,0.02499019,83154.0,83149.0,0.382611]
[1743297886288,0.02499019,83154.0,83149.0,0.394637]
[1743297887471,0.01296519,83154.0,83151.0,0.240524]
[1743297887673,0.25274979,83157.0,83151.0,0.240524]
[1743297888272,0.240514,83155.0,83150.0,0.012026]
[1743297888877,0.25292995,83155.0,83151.0,0.002]
[1743297889079,0.012026,83152.0,83151.0,0.002]
[1743297889283,0.252555,83150.0,83148.0,0.0465]
[1743297889476,0.240529,83150.0,83148.0,0.0465]
[1743297889813,0.252549,83152.0,83148.0,0.0465]
[1743297890014,0.252549,83152.0,83151.0,0.002]
[1743297890649,0.252549,83152.0,83144.0,0.0796]
[1743297890650,0.25257,83145.0,83144.0,0.0796]
[1743297890824,0.012027,83142.0,83140.0,0.0488374]
[1743297891168,0.312027,83142.0,83140.0,0.0488374]
[1743297891809,0.312027,83142.0,83141.0,0.0063372]
[1743297892482,0.312027,83142.0,83141.0,0.0003372]
[1743297892670,0.312027,83142.0,83141.0,0.0013372]
[1743297897115,0.33643957,83142.0,83141.0,0.0013372]
[1743297904264,0.33643957,83142.0,83141.0,0.0767372]
[1743297904575,0.312027,83142.0,83141.0,0.0767372]
[1743297909007,0.312027,83142.0,83141.0,0.0013372]
[1743297909971,0.3121956,83142.0,83141.0,0.0013372]
[1743297918209,0.3121956,83142.0,83141.0,0.0003372]
[1743297923477,0.0001686,83142.0,83141.0,0.0003372]
[1743297924550,0.0121956,83142.0,83141.0,0.0003372]
[1743297928878,0.3121956,83142.0,83141.0,0.0003372]
[1743297937630,0.27674493,83143.0,83141.0,0.0003372]
[1743297938597,0.012027,83142.0,83141.0,0.0003372]
[1743297940651,0.09141779,83142.0,83141.0,0.0003372]
[1743297946054,0.19158639,83142.0,83141.0,0.0003372]
[1743297947192,0.49158639,83142.0,83141.0,0.0003372]
[1743297947517,0.49258639,83142.0,83141.0,0.0003372]
[1743297947742,0.5279404,83142.0,83141.0,0.0003372]
[1743297947939,0.5269404,83142.0,83141.0,0.0003372]
[1743297948380,0.44854961,83142.0,83141.0,0.0003372]
[1743297948594,0.48654961,83142.0,83141.0,0.0003372]
[1743297948766,0.18654961,83142.0,83141.0,0.0003372]
[1743297948975,0.48654961,83142.0,83141.0,0.0003372]
[1743297949980,0.4511956,83142.0,83141.0,0.0003372]
[1743297955007,0.3131956,83142.0,83141.0,0.0003372]
[1743297959030,0.27674493,83143.0,83141.0,0.0003372]
[1743297959236,0.01902888,83142.0,83141.0,0.0003372]
[1743297959639,0.03105588,83142.0,83141.0,0.0003372]
[1743297960868,0.33105588,83142.0,83141.0,0.0003372]
[1743297961251,0.33405588,83142.0,83141.0,0.0003372]
[1743297961451,0.33705588,83142.0,83141.0,0.0003372]
[1743297962407,0.33705588,83142.0,83141.0,0.0779372]
[1743297963647,0.33105588,83142.0,83141.0,0.0779372]
[1743297963855,0.33105588,83142.0,83141.0,0.0003372]
[1743297964025,0.33505588,83142.0,83141.0,0.0003372]
[1743297965887,0.3161956,83142.0,83141.0,0.0003372]
[1743297968881,0.35154211,83142.0,83141.0,0.0003372]
[1743297969087,0.37040215,83142.0,83141.0,0.0003372]
[1743297970302,0.35154211,83142.0,83141.0,0.0003372]
[1743297973160,0.3161956,83142.0,83141.0,0.1250372]
[1743297974558,0.3350554,83142.0,83141.0,0.1250372]
[1743297974966,0.3161956,83142.0,83141.0,0.1250372]
[1743297985557,0.33505533,83142.0,83141.0,0.1250372]
[1743297986199,0.3161956,83142.0,83141.0,0.1250372]
[1743297989320,0.33505535,83142.0,83141.0,0.1250372]
[1743297990925,0.3161956,83142.0,83141.0,0.1250372]
[1743297994309,0.33505537,83142.0,83141.0,0.1250372]
[1743297995804,0.3161956,83142.0,83141.0,0.1250372]
[1743298001810,0.0041686,83142.0,83141.0,0.1250372]
[1743298002108,0.0161956,83142.0,83141.0,0.1250372]
[1743298003160,0.0141956,83142.0,83141.0,0.1250372]
[1743298003566,0.0121956,83142.0,83141.0,0.1250372]
[1743298004526,0.0141956,83142.0,83141.0,0.1250372]
[1743298006157,0.0131956,83142.0,83141.0,0.1250372]